Workbook

Sheet Auswahl in Gehäuse (hidden)
B1: Konfiguration Gehäuse- / Hybrid USV
B2: Auszug aus der J. Schneider Elektrotechnik Preisliste 2024 | J2: Rab. AT
J3: Rab. Batt. | S3: Passwort
L4: Preise 2024 | S4: 2060
B5: Stück | C5: Art.-Nr. | D5: Type | E5: Prim. | F5: Sek. | G5: I Aus | I Puffer 2) | H5: Kapazität | I5: Abmessungen | J5: Gewicht | K5: Gewicht | L5: Preis/Stück | M5: Pos S €
E6: V | F6: V DC | G6: A | H6: Ah | I6: H x B x T (mm) | J6: kg | K6: S | M6: Netto
D7: AKKUTEC 2403 VdS 8h, Abschaltung | E7: AC 115-230 | F7: 24 | G7: 3 | H7: - | I7: 153x72x125 | J7: 0.95 | K7: =IF(ISNUMBER(B7),(B7*J7),"") ->  | L7: 248.7 | M7: =IF(ISNUMBER(B7),(ROUNDUP(B7*((1-$K$2)*L7),1)),"") ->  | N7: =IF(AND(ISBLANK(B7),ISBLANK(B9)),"Sie haben kein AKKUTEC ausgewählt","") -> 
B9: 1 | D9: AKKUTEC 2412 VdS 8h, Abschaltung | E9: AC 230 | F9: 24 | G9: 12 | H9: - | I9: 155x95x183 | J9: 1.56 | K9: =IF(ISNUMBER(B9),(B9*J9),"") -> 1.56 | L9: 467.8 | M9: =IF(ISNUMBER(B9),(ROUNDUP(B9*((1-$K$2)*L9),1)),"") -> 467.8
B11: 1 | C11: NCPA1301G10002 | D11: C-TEC 2425 P bis 21,6 V Notpufferung | E11: DC 24 | F11: 24 | G11: 25 | H11: 1,4 kJ | I11: 123 x 65 x 145 | J11: 0.8 | K11: =IF(ISNUMBER(B11),(B11*J11),"") -> 0.8 | L11: 241.6 | M11: =IF(ISNUMBER(B11),(ROUNDUP(B11*((1-$K$2)*L11),1)),"") -> 241.6
C13: NCPA1034G01003 1) | D13: C-TEC 2440 P bis 21,6 V Notpufferung | E13: DC 24 | F13: 24 | G13: 40 | H13: 4 kJ | I13: 188 x 84 x 194 | J13: 2 | K13: =IF(ISNUMBER(B13),(B13*J13),"") ->  | L13: 484.1 | M13: =IF(ISNUMBER(B13),(ROUNDUP(B13*((1-$K$2)*L13),1)),"") -> 
C14: 1) nur mit IP 54 Gehäuse | G14: IPuffer 2) | H14: 2) Strom bei 8 h Pufferzeit, inkl. 20 % Alterungsreserve der Batterie
C15: 452011.22 | D15: Batterie 12 Ah - 12 V | F15: 12 | G15: 1.1 | H15: 12 | I15: 94x151x98 | J15: 4.1 | K15: =IF(ISNUMBER(B15),(B15*J15),"") ->  | L15: 43 | M15: =IF(ISNUMBER(B15),(ROUNDUP(B15*((1-$K$3)*L15),1)),"") -> 
C16: 452011.2 | D16: Batterie 17 Ah - 12 V | F16: 12 | G16: 1.6 | H16: 17 | I16: 167x76x181 | J16: 6.1 | K16: =IF(ISNUMBER(B16),(B16*J16),"") ->  | L16: 65 | M16: =IF(ISNUMBER(B16),(ROUNDUP(B16*((1-$K$3)*L16),1)),"") -> 
C17: 452011.4 | D17: Batterie 24 Ah - 12 V | F17: 12 | G17: 2.5 | H17: 24 | I17: 125x175x166 | J17: 8.9 | K17: =IF(ISNUMBER(B17),(B17*J17),"") ->  | L17: 89 | M17: =IF(ISNUMBER(B17),(ROUNDUP(B17*((1-$K$3)*L17),1)),"") -> 
B18: 2 | C18: 452011.8 | D18: Batterie 40 Ah - 12 V | F18: 12 | G18: 4.1 | H18: 40 | I18: 197x165x170 | J18: 15.7 | K18: =IF(ISNUMBER(B18),(B18*J18),"") -> 31.4 | L18: 156 | M18: =IF(ISNUMBER(B18),(ROUNDUP(B18*((1-$K$3)*L18),1)),"") -> 312
C19: 452011.9 | D19: Batterie 65 Ah - 12 V | F19: 12 | G19: 6.7 | H19: 65 | I19: 350x166x174 | J19: 24 | K19: =IF(ISNUMBER(B19),(B19*J19),"") ->  | L19: 219 | M19: =IF(ISNUMBER(B19),(ROUNDUP(B19*((1-$K$3)*L19),1)),"") -> 
B21: =IF(OR(IF(ISBLANK(B7),0,1),IF(ISBLANK(B9),0,1)),SUM(B7,B9),"") -> 1 | C21: MTIAQ33G3M01 | D21: Temperatursensor | E21: für AKKUTEC VdS | L21: 12.3 | M21: =IF(ISNUMBER(B21),(ROUNDUP(B21*((1-$K$2)*L21),1)),"") -> 12.3
B23: =IF(OR(IF(ISBLANK(B7),0,1),IF(ISBLANK(B9),0,1)),SUM(B7,B9),"") -> 1 | C23: NBP40848G01001 | D23: Fusebridge | E23: mit Sicherungen 15A, 25A, 30A (Kabelschuhe für M5 & M6 ) bis 65 Ah | L23: 15 | M23: =IF(ISNUMBER(B23),(ROUNDUP(B23*((1-$K$2)*L23),1)),"") -> 15
B25: =IF(IF(ISBLANK(B7),0,1),B7,"") ->  | D25: FB 2405-5 P Sicherungsplatine | E25: für FKS-Sicherungen mit max. 6,3 A, (5 x 1 A ) | I25: 110x58x100 | J25: 0.23 | K25: =IF(ISNUMBER(B25),(B25*J25),"") ->  | L25: 79.5 | M25: =IF(ISNUMBER(B25),(ROUNDUP(B25*((1-$K$2)*L25),1)),"") -> 
B26: =IF(IF(ISBLANK(B9),0,1),B9,"") -> 1 | D26: FB 2410-10 P Sicherungsplatine | E26: für FKS-Sicherungen mit max. 15 A, ( 10 x 1 A) | I26: 110x84x100 | J26: 0.2 | K26: =IF(ISNUMBER(B26),(B26*J26),"") -> 0.2 | L26: 92.7 | M26: =IF(ISNUMBER(B26),(ROUNDUP(B26*((1-$K$2)*L26),1)),"") -> 92.7
C28: 42118.1 | D28: Option: "ON" Taster | L28: 53.1 | M28: =IF(ISNUMBER(B28),(ROUNDUP(B28*((1-$K$2)*L28),1)),"") -> 
C29: PMDV1710G01001 | D29: Gateway Ethernetanbindung für AKKUTEC | I29: 99x45x114 | J29: 0.2 | L29: 305.7 | M29: =IF(ISNUMBER(B29),(ROUNDUP(B29*((1-$K$2)*L29),1)),"") -> 
C31: =IF(ISBLANK(B9),"","Nicht möglich!") -> Nicht möglich! | D31: Gehäuse IP 31 bis 40Ah | E31: für AkkuTEC 2403 und Akkus bis 24 Ah | I31: 424x508x189 | J31: 9 | K31: =IF(ISNUMBER(B31),(B31*J31),"") ->  | L31: 146.7 | M31: =IF(ISNUMBER(B31),(ROUNDUP(B31*((1-$K$2)*L31),1)),"") ->  | N31: =IF(OR(IF(ISBLANK(B18),0,1),IF(ISBLANK(B19),0,1)),"Nicht möglich, da Gehäuse zu klein ist.","") -> Nicht möglich, da Gehäuse zu klein ist.
B32: 1 | C32: =IF(ISBLANK(B7),"","Nicht möglich!") ->  | D32: Gehäuse IP 31 bis 80Ah | E32: für AkkuTEC 2412 und Akkus bis 80 Ah | I32: 608x464x213 | J32: 11 | K32: =IF(ISNUMBER(B32),(B32*J32),"") -> 11 | L32: 210.9 | M32: =IF(ISNUMBER(B32),(ROUNDUP(B32*((1-$K$2)*L32),1)),"") -> 210.9 | N32: =IF(ISBLANK(B13),"","Nicht möglich da CT2440 zu groß ist!") -> 
D33: Gehäuse IP 54 bis 65Ah | E33: für AkkuTEC 2412 VdS und Akkus bis 4x 120 Ah | I33: 1000x800x300 | J33: 23 | K33: =IF(ISNUMBER(B33),(B33*J33),"") ->  | L33: 568.6 | M33: =IF(ISNUMBER(B33),(ROUNDUP(B33*((1-$K$2)*L33),1)),"") -> 
B35: Irrtümer vorbehalten! | G35: 2) Strom bei 8 h Pufferzeit, | J35: Gewicht USV ca. | K35: =ROUNDUP(SUM(K7:K13)+SUM(K25:K33),0) -> 14 | M35: =SUM(M7:M13)+SUM(M21:M33) -> 1040.3
G36: inkl. 20 % Alterungsreserve der Batterie | J36: Gewicht Batterie ca. | K36: =ROUNDUP(SUM(K15:K19),0) -> 32 | M36: =SUM(M15:M19) -> 312
E38: Art. Nr.: | G38: =IF(AND(ISBLANK($B$31),ISBLANK($B$32),ISBLANK($B$33)),"",'Artikelnummer Logik'!$C$4) -> NKPG2108G01051
F40: =IF(AND(ISBLANK(B15),ISBLANK(B16),ISBLANK(B17),ISBLANK(B18),ISBLANK(B19)),"",IF(AND(ISBLANK(B31),ISBLANK(B32),ISBLANK(B33)),"","+")) -> + | G40: =IF(AND(ISBLANK(B15),ISBLANK(B16),ISBLANK(B17),ISBLANK(B18),ISBLANK(B19)),"",IF(AND(ISBLANK(B31),ISBLANK(B32),ISBLANK(B33)),"",'Artikelnummer Logik'!U38)) -> 2 | H40: =IF(AND(ISBLANK(B15),ISBLANK(B16),ISBLANK(B17),ISBLANK(B18),ISBLANK(B19)),"",IF(AND(ISBLANK(B31),ISBLANK(B32),ISBLANK(B33)),"",'Artikelnummer Logik'!Y38)) -> 452011.8
C44: Sonderwunsch

Sheet Auswahl Komponenten (hidden)
B1: Konfiguration Gehäuse- / Hybrid USV
B2: Auszug aus der J. Schneider Elektrotechnik Preisliste 2024 | J2: Rab. AT
J3: Rab. Batt.
L4: Preise 2024
B5: Stück | C5: Art.-Nr. | D5: Type | E5: Prim. | F5: Sek. | G5: I Aus | I Puffer 2) | H5: Kapazität | I5: Abmessungen | J5: Gewicht | K5: Gewicht | L5: Preis/Stück | M5: Pos S €
E6: V | F6: V DC | G6: A | H6: Ah | I6: H x B x T (mm) | J6: kg | K6: S | M6: Netto
C7: NBPA0844G01016 | D7: AKKUTEC 2403 VdS 8h, Abschaltung | E7: AC 115-230 | F7: 24 | G7: 3 | H7: - | I7: 153x72x125 | J7: 0.95 | K7: =IF(ISNUMBER(B7),(B7*J7),"") ->  | L7: 248.7 | M7: =IF(ISNUMBER(B7),(ROUNDUP(B7*((1-$K$2)*L7),1)),"") -> 
C9: NBPA0812G01019 | D9: AKKUTEC 2412 VdS 8h, Abschaltung | E9: AC 230 | F9: 24 | G9: 12 | H9: - | I9: 155x95x183 | J9: 1.56 | K9: =IF(ISNUMBER(B9),(B9*J9),"") ->  | L9: 467.8 | M9: =IF(ISNUMBER(B9),(ROUNDUP(B9*((1-$K$2)*L9),1)),"") -> 
C11: NCPA1301G10002 | D11: C-TEC 2425 P bis 21,6 V Notpufferung | E11: DC 24 | F11: 24 | G11: 25 | H11: 1,4 kJ | I11: 123 x 65 x 145 | J11: 0.8 | K11: =IF(ISNUMBER(B11),(B11*J11),"") ->  | L11: 241.6 | M11: =IF(ISNUMBER(B11),(ROUNDUP(B11*((1-$K$2)*L11),1)),"") -> 
C13: NCPA1034G01003 1) | D13: C-TEC 2440 P bis 21,6 V Notpufferung | E13: DC 24 | F13: 24 | G13: 40 | H13: 4 kJ | I13: 188 x 84 x 194 | J13: 2 | K13: =IF(ISNUMBER(B13),(B13*J13),"") ->  | L13: 484.1 | M13: =IF(ISNUMBER(B13),(ROUNDUP(B13*((1-$K$2)*L13),1)),"") -> 
C14: 1) nur mit IP 54 Gehäuse | G14: IPuffer 2) | H14: 2) Strom bei 8 h Pufferzeit, inkl. 20 % Alterungsreserve der Batterie
C15: 452011.22 | D15: Batterie 12 Ah - 12 V | F15: 12 | G15: 1.1 | H15: 12 | I15: 94x151x98 | J15: 4.1 | K15: =IF(ISNUMBER(B15),(B15*J15),"") ->  | L15: 43 | M15: =IF(ISNUMBER(B15),(ROUNDUP(B15*((1-$K$3)*L15),1)),"") -> 
C16: 452011.2 | D16: Batterie 17 Ah - 12 V | F16: 12 | G16: 1.6 | H16: 17 | I16: 167x76x181 | J16: 6.1 | K16: =IF(ISNUMBER(B16),(B16*J16),"") ->  | L16: 65 | M16: =IF(ISNUMBER(B16),(ROUNDUP(B16*((1-$K$3)*L16),1)),"") -> 
C17: 452011.4 | D17: Batterie 24 Ah - 12 V | F17: 12 | G17: 2.5 | H17: 24 | I17: 125x175x166 | J17: 8.9 | K17: =IF(ISNUMBER(B17),(B17*J17),"") ->  | L17: 89 | M17: =IF(ISNUMBER(B17),(ROUNDUP(B17*((1-$K$3)*L17),1)),"") -> 
C18: 452011.8 | D18: Batterie 40 Ah - 12 V | F18: 12 | G18: 4.1 | H18: 40 | I18: 197x165x170 | J18: 15.7 | K18: =IF(ISNUMBER(B18),(B18*J18),"") ->  | L18: 156 | M18: =IF(ISNUMBER(B18),(ROUNDUP(B18*((1-$K$3)*L18),1)),"") -> 
C19: 452011.9 | D19: Batterie 65 Ah - 12 V | F19: 12 | G19: 6.7 | H19: 65 | I19: 350x166x174 | J19: 24 | K19: =IF(ISNUMBER(B19),(B19*J19),"") ->  | L19: 219 | M19: =IF(ISNUMBER(B19),(ROUNDUP(B19*((1-$K$3)*L19),1)),"") -> 
C21: NBBHL33G1M02 | D21: NBBH 2412 Batteriemodul 24V 12 Ah | E21: inkl. Sicherung | F21: 24 | G21: 1.1 | H21: 12 | I21: 115x241x159 | J21: 9.4 | K21: =IF(ISNUMBER(B21),(B21*J21),"") ->  | L21: 153 | M21: =IF(ISNUMBER(B21),(ROUNDUP(B21*((1-$K$3)*L21),1)),"") -> 
C22: NBBH0336G01001 | D22: NBBH 2417 Batteriemodul 24V 17 Ah | E22: *Fusebridge | F22: 24 | G22: 1.6 | H22: 17 | I22: 170x155x182 | J22: 18 | K22: =IF(ISNUMBER(B22),(B22*J22),"") ->  | L22: 183 | M22: =IF(ISNUMBER(B22),(ROUNDUP(B22*((1-$K$3)*L22),1)),"") -> 
C23: NBBH0336G01002 | D23: NBBH 2424 Batteriemodul 24V 24 Ah | E23: *Fusebridge | F23: 24 | G23: 2.5 | H23: 24 | I23: 137x335x200 | J23: 20 | K23: =IF(ISNUMBER(B23),(B23*J23),"") ->  | L23: 228 | M23: =IF(ISNUMBER(B23),(ROUNDUP(B23*((1-$K$3)*L23),1)),"") -> 
C24: NBBH0336G01003 | D24: NBBH 2440 Batteriemodul 24V 40 Ah | E24: *Fusebridge | F24: 24 | G24: 4.1 | H24: 40 | I24: 170x335x200 | J24: 33 | K24: =IF(ISNUMBER(B24),(B24*J24),"") ->  | L24: 360 | M24: =IF(ISNUMBER(B24),(ROUNDUP(B24*((1-$K$3)*L24),1)),"") -> 
C25: NBBH0336G01004 | D25: NBBH 2465 Batteriemodul 24V 65 Ah | E25: *Fusebridge | F25: 24 | G25: 6.7 | H25: 65 | I25: 2x(170x397x200) | J25: 56 | K25: =IF(ISNUMBER(B25),(B25*J25),"") ->  | L25: 459 | M25: =IF(ISNUMBER(B25),(ROUNDUP(B25*((1-$K$3)*L25),1)),"") -> 
C27: MTIAQ33G3M01 | D27: Temperatursensor | E27: für AKKUTEC VdS | L27: 12.3 | M27: =IF(ISNUMBER(B27),(ROUNDUP(B27*((1-$K$2)*L27),1)),"") -> 
C29: NBP40848G01003 | D29: Fusebridge | E29: mit Sicherungen 15A, 25A, 30A (Kabelschuhe für M5 & M6 ) bis 65 Ah | L29: 15 | M29: =IF(ISNUMBER(B29),(ROUNDUP(B29*((1-$K$2)*L29),1)),"") -> 
C31: NBP20902G02004 | D31: FB 2405-5 P Sicherungsplatine | E31: für FKS-Sicherungen mit max. 6,3 A, (5 x 1 A ) | I31: 110x120x68 | J31: 0.23 | K31: =IF(ISNUMBER(B31),(B31*J31),"") ->  | L31: 79.5 | M31: =IF(ISNUMBER(B31),(ROUNDUP(B31*((1-$K$2)*L31),1)),"") -> 
C32: NBP20901G02003 | D32: FB 2410-10 P Sicherungsplatine | E32: für FKS-Sicherungen mit max. 15 A, ( 10 x 1 A) | I32: 110x120x68 | J32: 0.2 | K32: =IF(ISNUMBER(B32),(B32*J32),"") ->  | L32: 92.7 | M32: =IF(ISNUMBER(B32),(ROUNDUP(B32*((1-$K$2)*L32),1)),"") -> 
D34: Option: "ON" Taster | L34: 53.1 | M34: =IF(ISNUMBER(B34),(ROUNDUP(B34*((1-$K$2)*L34),1)),"") -> 
C35: PMDV1710G01001 | D35: Gateway Ethernetanbindung für AKKUTEC | I35: 99x45x114 | J35: 0.2 | L35: 305.7 | M35: =IF(ISNUMBER(B35),(ROUNDUP(B35*((1-$K$2)*L35),1)),"") -> 
B37: Irrtümer vorbehalten! | G37: 2) Strom bei 8 h Pufferzeit, | J37: Gewicht ca. | K37: =ROUNDUP(SUM(K7:K35),0) -> 0 | M37: =SUM(M7:M35) -> 0
G38: inkl. 20 % Alterungsreserve der Batterie

Sheet Artikelnummer Logik (hidden)
C1: Hybrid-USV im Gehäuse, Artikel-Nummern
C2: USV im Gehäuse immer mit Temperatursensor und Fusebridge ( + 12,- € + 15,- € ) | I2: 1 - 6 | O2: 7 | P2: 8 | R2: 10 | S2: 11 | T2: 12 | U2: 13 | V2: 14
C4: =I6&J6&K6&L6&M6&N6&O6&P6&Q6&R6&S6&T6&U6&V6 -> NKPG2108G01051 | H4: Beispiel : | I4: N | J4: K | K4: P | L4: G | M4: 2 | N4: 1 | O4: 0 | P4: 8 | Q4: G | R4: 0 | S4: 1 | T4: 0 | U4: 5 | V4: 4
I6: N | J6: =J8 -> K | K6: P | L6: G | M6: =SUM(M10:M31) -> 2 | N6: =SUM(N10:N31) -> 1 | O6: =SUM(O10:O31) -> 0 | P6: =SUM(P10:P31) -> 8 | Q6: G | R6: =SUM(R29:R31) -> 0 | S6: =SUM(S29:S31) -> 1 | T6: =SUM(T20:T22) -> 0 | U6: =SUM(U20:U22) -> 5 | V6: =SUM(V24:V27) -> 1
J8: =IF(AND(IF(B10="x",0,1),IF(B11="x",0,1),IF(B12="x",0,1),IF(B13="x",0,1)),"K","B") -> K
B9: Auswahl | C9: Leistung / Kombination
B10: =IF(AND(IF(ISBLANK('Auswahl in Gehäuse'!B7),0,1),IF(ISBLANK('Auswahl in Gehäuse'!$B$11),1,0),IF(ISBLANK('Auswahl in Gehäuse'!$B$13),1,0),IF(ISBLANK('Auswahl in Gehäuse'!$B$31),0,1)),"x","") ->  | C10: B: AKKUTEC 2403 VdS 8h IP31 | D10: 4 | E10: 4 | F10: 0 | G10: 8 | J10: =IF(ISBLANK($J$8),"",$J$8) -> K | M10: =IF($B10="x",F10,"") ->  | O10: =IF($B10="x",D10,"") -> 
B11: =IF(AND(IF(ISBLANK('Auswahl in Gehäuse'!B9),0,1),IF(ISBLANK('Auswahl in Gehäuse'!$B$11),1,0),IF(ISBLANK('Auswahl in Gehäuse'!$B$13),1,0),IF(ISBLANK('Auswahl in Gehäuse'!$B$32),0,1)),"x","") ->  | C11: B: AKKUTEC 2412 VdS 8h IP31 | D11: 1 | E11: 2 | F11: 0 | G11: 8 | J11: =IF(ISBLANK($J$8),"",$J$8) -> K
B12: =IF(AND(IF(ISBLANK('Auswahl in Gehäuse'!B7),0,1),IF(ISBLANK('Auswahl in Gehäuse'!$B$11),1,0),IF(ISBLANK('Auswahl in Gehäuse'!$B$13),1,0),IF(ISBLANK('Auswahl in Gehäuse'!$B$33),0,1)),"x","") ->  | C12: B: AKKUTEC 2403 VdS 8h IP54 | D12: 0 | E12: 3 | F12: 0 | G12: 9 | J12: =IF(ISBLANK($J$8),"",$J$8) -> K
B13: =IF(AND(IF(ISBLANK('Auswahl in Gehäuse'!B9),0,1),IF(ISBLANK('Auswahl in Gehäuse'!$B$11),1,0),IF(ISBLANK('Auswahl in Gehäuse'!$B$13),1,0),IF(ISBLANK('Auswahl in Gehäuse'!$B$33),0,1)),"x","") ->  | C13: B: AKKUTEC 2412 VdS 8h IP54 | D13: 0 | E13: 1 | F13: 0 | G13: 9 | J13: =IF(ISBLANK($J$8),"",$J$8) -> K
B15: =IF(AND(IF(ISBLANK('Auswahl in Gehäuse'!B7),0,1),IF(ISBLANK('Auswahl in Gehäuse'!B11),0,1)),"x","") ->  | C15: 07 : AKKUTEC 2403 VdS + C-TEC 2425 P | D15: 0 | E15: 7 | F15: 2 | G15: 1 | J15: =IF(ISBLANK($J$8),"",$J$8) -> K | M15: =IF($B15="x",F15,"") ->  | O15: =IF($B15="x",D15,"") -> 
B16: =IF(AND(IF(ISBLANK('Auswahl in Gehäuse'!B9),0,1),IF(ISBLANK('Auswahl in Gehäuse'!B11),0,1)),"x","") -> x | C16: 08 : AKKUTEC 2412 VdS + C-TEC 2425 P | D16: 0 | E16: 8 | F16: 2 | G16: 1 | J16: =IF(ISBLANK($J$8),"",$J$8) -> K | M16: 2 | N16: 1 | O16: 0 | P16: 8
B17: =IF(AND(IF(ISBLANK('Auswahl in Gehäuse'!B7),0,1),IF(ISBLANK('Auswahl in Gehäuse'!B13),0,1)),"x","") ->  | C17: 09 : AKKUTEC 2403 VdS + C-TEC 2440 P | D17: 0 | E17: 9 | F17: 2 | G17: 1 | J17: =IF(ISBLANK($J$8),"",$J$8) -> K
B18: =IF(AND(IF(ISBLANK('Auswahl in Gehäuse'!B9),0,1),IF(ISBLANK('Auswahl in Gehäuse'!B13),0,1)),"x","") ->  | C18: w | D18: 1 | E18: 0 | F18: 2 | G18: 1 | J18: =IF(ISBLANK($J$8),"",$J$8) -> K
C19: 8 h / 21,6 V un Si Platine
B20: =IF(AND(ISBLANK('Auswahl in Gehäuse'!B25),ISBLANK('Auswahl in Gehäuse'!B26)),"x","") ->  | C20: 03 : keine Sicherungsplatine, nach 8 h Lastabwurf | D20: 0 | E20: 3 | T20: =IF($B20="x",D20,"") -> 
B21: =IF(OR(B15="x",B17="x",B10="x",B12="x"),"x","") ->  | C21: 04 : FB2405-5 (P) Sicherungsplatine, nach 8 h Lastabwurf | D21: 0 | E21: 4
B22: =IF(OR(B16="x",B18="x",B11="x",B13="x"),"x","") -> x | C22: 05 : FB24105-10 P Sicherungsplatine, nach 8 h Lastabwurf | D22: 0 | E22: 5 | T22: 0 | U22: 5
C23: Optionen:
B24: =IF(AND(ISBLANK('Auswahl in Gehäuse'!B28),ISBLANK('Auswahl in Gehäuse'!B29)),"x","") -> x | C24: 1 : keine | D24: 1 | V24: =IF($B24="x",D24,"") -> 1
B25: =IF(AND(ISBLANK('Auswahl in Gehäuse'!B29),IF(ISBLANK('Auswahl in Gehäuse'!B28),0,1)),"x","") ->  | C25: 2 : ON - Taster | D25: 2 | V25: =IF($B25="x",D25,"") -> 
B26: =IF(AND(ISBLANK('Auswahl in Gehäuse'!B28),IF(ISBLANK('Auswahl in Gehäuse'!B29),0,1)),"x","") ->  | C26: 3 : Gateway | D26: 3 | V26: =IF($B26="x",D26,"") -> 
B27: =IF(AND(IF(ISBLANK('Auswahl in Gehäuse'!B28),0,1),IF(ISBLANK('Auswahl in Gehäuse'!B29),0,1)),"x","") ->  | C27: 4 : ON-Taster + Gateway | D27: 4 | V27: =IF($B27="x",D27,"") -> 
C28: Gehäuse :
B29: =IF(ISBLANK('Auswahl in Gehäuse'!B31),"","x") ->  | C29: 00 : IP 31 -> klein 424x508x189 mm, bis 40 Ah | D29: 0 | E29: 1 | R29: =IF($B29="x",D29,"") -> 
B30: =IF(ISBLANK('Auswahl in Gehäuse'!B32),"","x") -> x | C30: 01 : IP 31 -> 608x464x213 mm, bis 65 Ah | D30: 0 | E30: 1 | R30: 0 | S30: 1
B31: =IF(IF(ISBLANK('Auswahl in Gehäuse'!B33),1,0),"","x") ->  | C31: 02: IP 54 -> 1000x800x300 mm, bis 170 Ah | D31: 0 | E31: =IF(B34="x",2,IF(B34="",1,"")) -> 1 | Y31: =IF(OR(AND(B31="x",B18="x"),AND(B31="x",B17="x"),AND(B31="x",B12),AND(B31="x",B13="x")),1,"2") -> 2
B34: =IF(OR(AND(B31="x",B16="x"),AND(B31="x",B15="x")),"x","") -> 
B38: Batterieauswahl | U38: =SUM('Auswahl in Gehäuse'!B15:B19) -> 2 | W38: x | Y38: =CONCATENATE(X46,Y46,Z46,AA46,AB46,AC46,AD46,AE46,AF46) -> 452011.8 | AG38: =CONCATENATE(U38,V38,W38,X38,Y38) -> 2x452011.8
B40: =IF(ISBLANK('Auswahl in Gehäuse'!B15),"","x") ->  | C40: Batterie 12 Ah - 12 V | H40: 452011.22 | N40: 4 | O40: 5 | P40: 2 | Q40: 0 | R40: 1 | S40: 1 | T40: . | U40: 2 | V40: 2 | X40: =IF($B40="x", N40,"") ->  | Y40: =IF($B40="x", O40,"") -> 
B41: =IF(ISBLANK('Auswahl in Gehäuse'!B16),"","x") ->  | C41: Batterie 17 Ah - 12 V | H41: 452011.2 | N41: 4 | O41: 5 | P41: 2 | Q41: 0 | R41: 1 | S41: 1 | T41: . | U41: 2 | X41: =IF($B41="x", N41,"") ->  | Y41: =IF($B41="x", O41,"") -> 
B42: =IF(ISBLANK('Auswahl in Gehäuse'!B17),"","x") ->  | C42: Batterie 24 Ah - 12 V | H42: 452011.4 | N42: 4 | O42: 5 | P42: 2 | Q42: 0 | R42: 1 | S42: 1 | T42: . | U42: 4 | X42: =IF($B42="x", N42,"") -> 
B43: =IF(ISBLANK('Auswahl in Gehäuse'!B18),"","x") -> x | C43: Batterie 40 Ah - 12 V | H43: 452011.8 | N43: 4 | O43: 5 | P43: 2 | Q43: 0 | R43: 1 | S43: 1 | T43: . | U43: 8 | X43: =IF($B43="x", N43,"") -> 4 | Y43: 5 | Z43: 2 | AA43: 0 | AB43: 1 | AC43: 1 | AD43: . | AE43: 8
B44: =IF(ISBLANK('Auswahl in Gehäuse'!B19),"","x") ->  | C44: Batterie 65 Ah - 12 V | H44: 452011.9 | N44: 4 | O44: 5 | P44: 2 | Q44: 0 | R44: 1 | S44: 1 | T44: . | U44: 9 | X44: =IF($B44="x", N44,"") -> 
X46: =SUM(X40:X44) -> 4 | Y46: =SUM(Y40:Y44) -> 5 | Z46: 2 | AA46: 0 | AB46: 1 | AC46: 1 | AD46: . | AE46: 8 | AF46: =IF(B40 = "x", "2", "") -> 

Sheet Konfiguration in Gehäuse
D1: Konfiguration Gehäuse- / Hybrid USV
D2: Auszug aus der J. Schneider Elektrotechnik Preisliste 2025
N4: Preise 2025
D5: Stück | E5: Art.-Nr. | F5: Type | G5: Prim. | H5: Sek. | I5: I Aus | I Puffer 2) | J5: Kapazität | K5: Abmessungen | L5: Gewicht | M5: Gewicht | N5: Preis/Stück | O5: Pos S €
G6: V | H6: V DC | I6: A | J6: Ah | K6: H x B x T (mm) | L6: kg | M6: S | O6: Netto
F7: AKKUTEC 2403 VdS 8h, Abschaltung | G7: AC 115-230 | H7: 24 | I7: 3 | J7: - | K7: 153x72x125 | L7: 0.95 | M7: =IF(ISNUMBER(D7),(D7*L7),"") ->  | N7: 248.7 | O7: =IF(ISNUMBER(D7),(ROUNDUP(D7*((1-$M$2)*N7),1)),"") -> 
F8: AKKUTEC 2412 VdS 8h, Abschaltung | G8: AC 230 | H8: 24 | I8: 12 | J8: - | K8: 155x95x183 | L8: 1.56 | M8: =IF(ISNUMBER(D8),(D8*L8),"") ->  | N8: 467.8 | O8: =IF(ISNUMBER(D8),(ROUNDUP(D8*((1-$M$2)*N8),1)),"") -> 
F10: Isolationsüberwachung ( x=Ja)
E12: NCPA1301G10002 | F12: C-TEC 2425 P bis 21,6 V Notpufferung | G12: DC 24 | H12: 24 | I12: 25 | J12: 1,4 kJ | K12: 123 x 65 x 145 | L12: 0.8 | M12: =IF(ISNUMBER(D12),(D12*L12),"") ->  | N12: 241.6 | O12: =IF(ISNUMBER(D12),(ROUNDUP(D12*((1-$M$2)*N12),1)),"") -> 
E13: NCPA1034G01003 1) | F13: C-TEC 2440 P bis 21,6 V Notpufferung | G13: DC 24 | H13: 24 | I13: 40 | J13: 4 kJ | K13: 188 x 84 x 194 | L13: 2 | M13: =IF(ISNUMBER(D13),(D13*L13),"") ->  | N13: 484.1 | O13: =IF(ISNUMBER(D13),(ROUNDUP(D13*((1-$M$2)*N13),1)),"") -> 
E14: 1) nur mit IP 54 Gehäuse | I14: IPuffer 2) | J14: 2) Strom bei 8 h Pufferzeit, inkl. 20 % Alterungsreserve der Batterie
E16: 452011.22 | F16: Batterie 12 Ah - 12 V | H16: 12 | I16: 1.1 | J16: 12 | K16: 94x151x98 | L16: 4.1 | M16: =IF(ISNUMBER(D16),(D16*L16),"") ->  | N16: 43 | O16: =IF(ISNUMBER(D16),(ROUNDUP(D16*((1-$M$3)*N16),1)),"") -> 
E17: 452011.2 | F17: Batterie 17 Ah - 12 V | H17: 12 | I17: 1.6 | J17: 17 | K17: 167x76x181 | L17: 6.1 | M17: =IF(ISNUMBER(D17),(D17*L17),"") ->  | N17: 65 | O17: =IF(ISNUMBER(D17),(ROUNDUP(D17*((1-$M$3)*N17),1)),"") -> 
E18: 452011.4 | F18: Batterie 24 Ah - 12 V | H18: 12 | I18: 2.5 | J18: 24 | K18: 125x175x166 | L18: 8.9 | M18: =IF(ISNUMBER(D18),(D18*L18),"") ->  | N18: 89 | O18: =IF(ISNUMBER(D18),(ROUNDUP(D18*((1-$M$3)*N18),1)),"") -> 
E19: 452011.8 | F19: Batterie 40 Ah - 12 V | H19: 12 | I19: 4.1 | J19: 40 | K19: 197x165x170 | L19: 15.7 | M19: =IF(ISNUMBER(D19),(D19*L19),"") ->  | N19: 156 | O19: =IF(ISNUMBER(D19),(ROUNDUP(D19*((1-$M$3)*N19),1)),"") -> 
E20: 452011.9 | F20: Batterie 65 Ah - 12 V | H20: 12 | I20: 6.7 | J20: 65 | K20: 350x166x174 | L20: 24 | M20: =IF(ISNUMBER(D20),(D20*L20),"") ->  | N20: 219 | O20: =IF(ISNUMBER(D20),(ROUNDUP(D20*((1-$M$3)*N20),1)),"") -> 
D22: =IF(OR(IF(ISBLANK(D7),0,1),IF(ISBLANK(D8),0,1)),SUM(D7,D8),"") ->  | E22: MTIAQ33G3M01 | F22: Temperatursensor | G22: für AKKUTEC VdS | N22: 12.3 | O22: =IF(ISNUMBER(D22),(ROUNDUP(D22*((1-$M$2)*N22),1)),"") -> 
E24: NBP40848G01001 | F24: Fusebridge | G24: mit Sicherungen 15A, 25A, 30A (Kabelschuhe für M5 & M6 ) bis 65 Ah | N24: 15 | O24: =IF(ISNUMBER(D24),(ROUNDUP(D24*((1-$M$2)*N24),1)),"") -> 
F26: FB 2405-5 P Sicherungsplatine | G26: für FKS-Sicherungen mit max. 6,3 A, (5 x 1 A ) | K26: 110x58x100 | L26: 0.23 | M26: =IF(ISNUMBER(D26),(D26*L26),"") ->  | N26: 79.5 | O26: =IF(ISNUMBER(D26),(ROUNDUP(D26*((1-$M$2)*N26),1)),"") -> 
F27: FB 2410-10 P Sicherungsplatine | G27: für FKS-Sicherungen mit max. 15 A, ( 10 x 1 A) | K27: 110x84x100 | L27: 0.2 | M27: =IF(ISNUMBER(D27),(D27*L27),"") ->  | N27: 92.7 | O27: =IF(ISNUMBER(D27),(ROUNDUP(D27*((1-$M$2)*N27),1)),"") -> 
F29: DC-DC Wandler 24V-12V | G29: 24V DC | H29: 12V DC | K29: 134x58x147 | L29: 0.6 | O29: =IF(ISNUMBER(D29),(ROUNDUP(D29*((1-$M$2)*N29),1)),"") -> 
E31: PMDV1710G01001 | F31: Gateway Ethernetanbindung für AKKUTEC | K31: 99x45x114 | L31: 0.2 | N31: 305.7 | O31: =IF(ISNUMBER(D31),(ROUNDUP(D31*((1-$M$2)*N31),1)),"") -> 
E33: =IF(ISBLANK(D8),"","Nicht möglich!") ->  | F33: Gehäuse IP 31 bis 40Ah | G33: für AkkuTEC 2403 und Akkus bis 24 Ah | K33: 424x508x189 | L33: 9 | M33: =IF(ISNUMBER(D33),(D33*L33),"") ->  | N33: 146.7 | O33: =IF(ISNUMBER(D33),(ROUNDUP(D33*((1-$M$2)*N33),1)),"") -> 
E34: =IF(ISBLANK(D7),"","Nicht möglich!") ->  | F34: Gehäuse IP 31 bis 80Ah | G34: für AkkuTEC 2412 und Akkus bis 80 Ah | K34: 608x464x213 | L34: 11 | M34: =IF(ISNUMBER(D34),(D34*L34),"") ->  | N34: 210.9 | O34: =IF(ISNUMBER(D34),(ROUNDUP(D34*((1-$M$2)*N34),1)),"") -> 
F35: Gehäuse IP 54 bis 40Ah | G35: für AkkuTEC 2403 VdS und Akkus bis 40Ah | K35: 500x500x300 | L35: 19
F36: Gehäuse IP 54 bis 65Ah | G36: für AkkuTEC 2412 VdS und Akkus bis 4x 120 Ah | K36: 1000x800x300 | L36: 23 | M36: =IF(ISNUMBER(D36),(D36*L36),"") ->  | N36: 568.6 | O36: =IF(ISNUMBER(D36),(ROUNDUP(D36*((1-$M$2)*N36),1)),"") -> 
E38: Sonderwunsch: | N38: auf Anfrage
D39: Irrtümer vorbehalten! | I39: 2) Strom bei 8 h Pufferzeit, | K39: Gewicht USV ca. | L39: =ROUNDUP(SUM(M7:M13)+SUM(M26:M36),0) -> 0 | O39: =SUM(O7:O13)+SUM(O22:O36) -> 0
I40: inkl. 20 % Alterungsreserve der Batterie | K40: Gewicht Batterie | L40: =SUM(M16:M20) -> 0 | O40: =SUM(O16:O20) -> 0
G42: Artikelnummer: | I42: =IF(AND(D33="",D34="",D36=""),"",'Artikelnummer Logik 2025'!D5) -> 
H43: =IF(OR(D16<>"",D17<>"",D18<>"",D19<>"",D20<>""),"+","") ->  | I43: =IF(OR(D16<>"",D17<>"",D18<>"",D19<>"",D20<>""),'Artikelnummer Logik 2025'!V43,"") ->  | J43: =IF(OR(D16<>"",D17<>"",D18<>"",D19<>"",D20<>""),'Artikelnummer Logik 2025'!Z43,"") -> 

Sheet Foto
B6: Beispiel Hybrid-USV im Gehäuse IP 31, mit Batterien und Ultracaps-Energiespeicher

Sheet Aufbau
D2: Schematischer Aufbau DC-USV Hybrid für Batterien und Ultracaps UIN = 230 V AC UOUT = 24 V DC
D9: L | H9: + | Z9: +
D11: N | H11: - | Z11: -
D13: PE
H14: +
H16: -
A37: Irrtümer vorbehalten!

Sheet Auswahldiagramm (hidden)
C2: Bezeichnung | D2: AKKUTEC / C-TEC | E2: Abschal-tung | F2: Sicherungs- platine | G2: Schrank variante | H2: Artikelnummer | I2: On-Taster / Gateway | J2: Art. Nr.
C4: NKPG 2403-25 | D4: AKKUTEC 2403 VdS C-TEC 2425 P | E4: Nach 8h / Lastabwurf 21,6 V DC | F4: FB 2405-5 P | G4: IP31 | H4: NKPG2107G0004* | I4: 1: - 2: On-Taster 3: Gateway 4: On-Taster + Gateway | J4: NKPG2107G01041
J5: NKPG2107G01042
J6: NKPG2107G01043
J7: NKPG2107G01044
G8: IP54 | H8: NKPG2107G0204* | J8: NKPG2107G02041
J9: NKPG2107G02042
J10: NKPG2107G02043
J11: NKPG2107G02044
C12: NKPG 2412-25 | D12: AKKUTEC 2412 VdS C-TEC 2425 P | E12: Nach 8h / Lastabwurf 21,6 V DC | F12: FB 2410-10 P | G12: IP31 | H12: NKPG2108G0105* | I12: 1: - 2: On-Taster 3: Gateway 4: On-Taster + Gateway | J12: NKPG2108G01051
J13: NKPG2108G01052
J14: NKPG2108G01053
J15: NKPG2108G01054
G16: IP54 | H16: NKPG2108G0205* | J16: NKPG2108G02051
J17: NKPG2108G02052
J18: NKPG2108G02053
J19: NKPG2108G02054
C20: NKPG 2403-40 | D20: AKKUTEC 2403 VdS C-TEC 2440 P | E20: Nach 8h / Lastabwurf 21,6 V DC | F20: FB 2405-5 P | G20: IP54 | H20: NKPG2109G0104* | I20: 1: - 2: On-Taster 3: Gateway 4: On-Taster + Gateway | J20: NKPG2109G01041
J21: NKPG2109G01042
J22: NKPG2109G01043
J23: NKPG2109G01044
C24: NKPG 2412-40 | D24: AKKUTEC 2412 VdS C-TEC 2440 P | E24: Nach 8h / Lastabwurf 21,6 V DC | F24: FB2410-10 P | G24: IP54 | H24: NKPG2110G0105* | I24: 1: - 2: On-Taster 3: Gateway 4: On-Taster + Gateway | J24: NKPG2110G01051
J25: NKPG2110G01052
J26: NKPG2110G01053
J27: NKPG2110G01054
C30: NBPG 2403C 8h | D30: AKKUTEC 2403 VdS 8h | E30: Nach 8h / Lastabwurf 21,6 V DC | F30: FB 2405-5 P | G30: IP31 | H30: NBPG0844G0104* | I30: 1: - 2: On-Taster 3: Gateway 4: On-Taster + Gateway | J30: NBPG0844G01041
J31: NBPG0844G01042
J32: NBPG0844G01043
J33: NBPG0844G01044
C34: NBPG 2412C 8h | D34: AKKUTEC 2412 VdS 8h | E34: Nach 8h / Lastabwurf 21,6 V DC | F34: FB2410-10 P | G34: IP31 | H34: NBPG0812G0105* | I34: 1: - 2: On-Taster 3: Gateway 4: On-Taster + Gateway | J34: NBPG0812G01051
J35: NBPG0812G01052
J36: NBPG0812G01053
J37: NBPG0812G01054
C38: NBPG 2403C 8h | D38: AKKUTEC 2403 VdS 8h | E38: Nach 8h / Lastabwurf 21,6 V DC | F38: FB 2405-5 P | G38: IP54 | H38: NBPG0903G0104* | I38: 1: - 2: On-Taster 3: Gateway 4: On-Taster + Gateway | J38: NBPG0903G01041
J39: NBPG0903G01042
J40: NBPG0903G01043
J41: NBPG0903G01044
C42: NBPG 2412C 8h | D42: AKKUTEC 2412 VdS 8h | E42: Nach 8h / Lastabwurf 21,6 V DC | F42: FB2410-10 P | G42: IP54 | H42: NBPG0901G0205* | I42: 1: - 2: On-Taster 3: Gateway 4: On-Taster + Gateway | J42: NBPG0901G01051
J43: NBPG0901G01052
J44: NBPG0901G01053
J45: NBPG0901G01054

Sheet Artikelnummer Logik 2025 (hidden)
D5: =N5&O5&P5&Q5&R5&S5&T5&U5&V5&W5&X5&Y5&Z5&AA5 -> NKPG0000G00001 | N5: N | O5: =IF(AND(IF(C7="x",0,1),IF(C8="x",0,1),IF(C13="x",0,1),IF(C14="x",0,1)),"K","B") -> K | P5: P | Q5: G | R5: =SUM(R7:R34) -> 0 | S5: =SUM(S7:S34) -> 0 | T5: =SUM(T7:T34) -> 0 | U5: =SUM(U7:U34) -> 0 | V5: G | W5: =IF($C$39="x",W39,SUM(W7:W35)) -> 0 | X5: =IF($C$39="x",W39,SUM(X7:X34)) -> 0 | Y5: =IF($C$39="x",W39,SUM(Y7:Y34)) -> 0 | Z5: =IF($C$39="x",W39,SUM(Z7:Z34)) -> 0 | AA5: =IF($C$39="x",W39,SUM(AA7:AA34)) -> 1
D6: AKKUTEC | E6: C-TEC | F6: Iso Überwachung
B7: x | C7: =IF(AND('Konfiguration in Gehäuse'!D8<>"",'Konfiguration in Gehäuse'!D10<>"",'Konfiguration in Gehäuse'!D12="",'Konfiguration in Gehäuse'!D13=""),"x","") ->  | D7: AKKUTEC 2412 | F7: Ja | G7: 2 | H7: 5 | I7: 1 | J7: 1 | L7: B | O7: =IF($C7="x",L7,"") ->  | R7: =IF($C7="x",G7,"") ->  | S7: =IF($C7="x",H7,"") ->  | T7: =IF($C7="x",I7,"") ->  | U7: =IF($C7="x",J7,"") -> 
B8: x | C8: =IF(AND('Konfiguration in Gehäuse'!D8<>"",'Konfiguration in Gehäuse'!D10="",'Konfiguration in Gehäuse'!D12="",'Konfiguration in Gehäuse'!D13=""),"x","") ->  | D8: AKKUTEC 2412 | F8: Nein | G8: 2 | H8: 5 | I8: 1 | J8: 2 | L8: B | O8: =IF($C8="x",L8,"") -> 
B9: x | C9: =IF(AND('Konfiguration in Gehäuse'!D8<>"",'Konfiguration in Gehäuse'!D10<>"",'Konfiguration in Gehäuse'!D12<>""),"x","") ->  | D9: AKKUTEC 2412 | E9: 2425P | F9: Ja | G9: 2 | H9: 5 | I9: 0 | J9: 1 | L9: K
B10: x | C10: =IF(AND('Konfiguration in Gehäuse'!D8<>"",'Konfiguration in Gehäuse'!D12<>"",'Konfiguration in Gehäuse'!D10=""),"x","") ->  | D10: AKKUTEC 2412 | E10: 2425P | F10: Nein | G10: 2 | H10: 5 | I10: 0 | J10: 2 | L10: K
B11: x | C11: =IF(AND('Konfiguration in Gehäuse'!D8<>"",'Konfiguration in Gehäuse'!D10<>"",'Konfiguration in Gehäuse'!D13<>""),"x","") ->  | D11: AKKUTEC 2412 | E11: 2440P | F11: Ja | G11: 2 | H11: 5 | I11: 0 | J11: 3 | L11: K
B12: x | C12: =IF(AND('Konfiguration in Gehäuse'!D8<>"",'Konfiguration in Gehäuse'!D13<>"",'Konfiguration in Gehäuse'!D10=""),"x","") ->  | D12: AKKUTEC 2412 | E12: 2440P | F12: Nein | G12: 2 | H12: 5 | I12: 0 | J12: 4 | L12: K
B13: x | C13: =IF(AND('Konfiguration in Gehäuse'!D7<>"",'Konfiguration in Gehäuse'!D10<>"",'Konfiguration in Gehäuse'!D12="",'Konfiguration in Gehäuse'!D13=""),"x","") ->  | D13: AKKUTEC 2403 | F13: Ja | G13: 2 | H13: 5 | I13: 1 | J13: 3 | L13: B | R13: =IF($C13="x",G13,"") ->  | S13: =IF($C13="x",H13,"") ->  | T13: =IF($C13="x",I13,"") ->  | U13: =IF($C13="x",J13,"") -> 
B14: x | C14: =IF(AND('Konfiguration in Gehäuse'!D7<>"",'Konfiguration in Gehäuse'!D10="",'Konfiguration in Gehäuse'!D12="",'Konfiguration in Gehäuse'!D13=""),"x","") ->  | D14: AKKUTEC 2403 | F14: Nein | G14: 2 | H14: 5 | I14: 1 | J14: 4 | L14: B
B15: x | C15: =IF(AND('Konfiguration in Gehäuse'!D7<>"",'Konfiguration in Gehäuse'!D10<>"",'Konfiguration in Gehäuse'!D12<>""),"x","") ->  | D15: AKKUTEC 2403 | E15: 2425P | F15: Ja | G15: 2 | H15: 5 | I15: 0 | J15: 5 | L15: K
B16: x | C16: =IF(AND('Konfiguration in Gehäuse'!D7<>"",'Konfiguration in Gehäuse'!D12<>"",'Konfiguration in Gehäuse'!D10=""),"x","") ->  | D16: AKKUTEC 2403 | E16: 2425P | F16: Nein | G16: 2 | H16: 5 | I16: 0 | J16: 6 | L16: K
B17: x | C17: =IF(AND('Konfiguration in Gehäuse'!D7<>"",'Konfiguration in Gehäuse'!D10<>"",'Konfiguration in Gehäuse'!D13<>""),"x","") ->  | D17: AKKUTEC 2403 | E17: 2440P | F17: Ja | G17: 2 | H17: 5 | I17: 0 | J17: 7 | L17: K
B18: x | C18: =IF(AND('Konfiguration in Gehäuse'!D7<>"",'Konfiguration in Gehäuse'!D13<>"",'Konfiguration in Gehäuse'!D10=""),"x","") ->  | D18: AKKUTEC 2403 | E18: 2440P | F18: Nein | G18: 2 | H18: 5 | I18: 0 | J18: 8 | L18: K
B20: x | C20: =IF(AND('Konfiguration in Gehäuse'!D26="",'Konfiguration in Gehäuse'!D27=""),"x","") -> x | D20: ohne Sicherungsplatine | G20: 0 | H20: 1 | Z20: =IF($C20="x",$G20,"") -> 0 | AA20: =IF($C20="x",$H20,"") -> 1
B21: x | C21: =IF('Konfiguration in Gehäuse'!D26<>"","x","") ->  | D21: 5er Sicherungsplatine | G21: 0 | H21: 2 | Z21: =IF($C21="x",$G21,"") ->  | AA21: =IF($C21="x",$H21,"") -> 
C22: =IF('Konfiguration in Gehäuse'!D27<>"","x","") ->  | D22: 10er Sicherungsplatine | G22: 0 | H22: 3 | Z22: =IF($C22="x",$G22,"") -> 
B24: x | C24: =IF(AND('Konfiguration in Gehäuse'!D24="",'Konfiguration in Gehäuse'!D31=""),"x","") -> x | D24: ohne Fusebridge oder Gateway | G24: 0 | Y24: =IF($C24="x",$G24,"") -> 0
C25: =IF(AND('Konfiguration in Gehäuse'!D24<>"",'Konfiguration in Gehäuse'!D31=""),"x","") ->  | D25: Fusebridge | G25: 1 | Y25: =IF($C25="x",$G25,"") -> 
C26: =IF(AND('Konfiguration in Gehäuse'!D24="",'Konfiguration in Gehäuse'!D31<>""),"x","") ->  | D26: Gateway | G26: 2 | Y26: =IF($C26="x",$G26,"") -> 
B27: x | C27: =IF(AND('Konfiguration in Gehäuse'!D24<>"",'Konfiguration in Gehäuse'!D31<>""),"x","") ->  | D27: Fusebridge + Gateway | G27: 3 | Y27: =IF($C27="x",$G27,"") -> 
B29: x | C29: =IF('Konfiguration in Gehäuse'!D29="","x","") -> x | D29: ohne DC-DC Wandler | G29: 0 | X29: =IF($C29="x",$G29,"") -> 0
B30: x | C30: =IF('Konfiguration in Gehäuse'!D29<>"","x","") ->  | D30: DC-DC Wandler 24V auf 12V | G30: 1 | X30: =IF($C30="x",$G30,"") -> 
B32: x | C32: =IF('Konfiguration in Gehäuse'!D33<>"","x","") ->  | D32: IP31 klein AKKUTEC 2403 | G32: 1 | W32: =IF($C32="x",$G32,"") -> 
B33: x | C33: =IF('Konfiguration in Gehäuse'!D34<>"","x","") ->  | D33: IP31 groß AKKUTEC 2412 | G33: 2 | W33: =IF($C33="x",$G33,"") -> 
B34: x | C34: =IF('Konfiguration in Gehäuse'!D35<>"","x","") ->  | D34: IP54 AKKUTEC 2403 | F34: ohne HZ | G34: 3
B35: x | C35: =IF('Konfiguration in Gehäuse'!D36<>"","x","") ->  | D35: IP54 AKKUTEC 2412 | F35: ohne HZ | G35: 4
D36: IP54 AKKUTEC 2403 | F36: mit HZ
D37: IP54 AKKUTEC 2412 | F37: mit HZ
B39: x | C39: =IF('Konfiguration in Gehäuse'!D38<>"","x","") ->  | D39: Sondereinstellung | W39: X | X39: X | Y39: X | Z39: X | AA39: X
C43: Batterieauswahl | V43: =SUM('Konfiguration in Gehäuse'!D16:D20) -> 0 | X43: x | Z43: =CONCATENATE(Y51,Z51,AA51,AB51,AC51,AD51,AE51,AF51,AG51) -> 000000.0 | AH43: =CONCATENATE(V43,W43,X43,Y43,Z43) -> 0x000000.0
C45: =IF('Konfiguration in Gehäuse'!D16<>"","x","") ->  | D45: Batterie 12 Ah - 12 V | I45: 452011.22 | O45: 4 | P45: 5 | Q45: 2 | R45: 0 | S45: 1 | T45: 1 | U45: . | V45: 2 | W45: 2 | Y45: =IF($C45<>"",O45,"") ->  | Z45: =IF($C45<>"",P45,"") -> 
C46: =IF('Konfiguration in Gehäuse'!D17<>"","x","") ->  | D46: Batterie 17 Ah - 12 V | I46: 452011.2 | O46: 4 | P46: 5 | Q46: 2 | R46: 0 | S46: 1 | T46: 1 | U46: . | V46: 2 | Y46: =IF($C46<>"",O46,"") ->  | Z46: =IF($C46<>"",P46,"") ->  | AA46: =IF($C46<>"",Q46,"") ->  | AB46: =IF($C46<>"",R46,"") ->  | AC46: =IF($C46<>"",S46,"") ->  | AD46: =IF($C46<>"",T46,"") ->  | AE46: =IF($C46<>"",U46,"") ->  | AF46: =IF($C46<>"",V46,"") -> 
C47: =IF('Konfiguration in Gehäuse'!D18<>"","x","") ->  | D47: Batterie 24 Ah - 12 V | I47: 452011.4 | O47: 4 | P47: 5 | Q47: 2 | R47: 0 | S47: 1 | T47: 1 | U47: . | V47: 4
C48: =IF('Konfiguration in Gehäuse'!D19<>"","x","") ->  | D48: Batterie 40 Ah - 12 V | I48: 452011.8 | O48: 4 | P48: 5 | Q48: 2 | R48: 0 | S48: 1 | T48: 1 | U48: . | V48: 8
C49: =IF('Konfiguration in Gehäuse'!D20<>"","x","") ->  | D49: Batterie 65 Ah - 12 V | I49: 452011.9 | O49: 4 | P49: 5 | Q49: 2 | R49: 0 | S49: 1 | T49: 1 | U49: . | V49: 9
Y51: =SUM(Y45:Y49) -> 0 | Z51: =SUM(Z45:Z49) -> 0 | AA51: 0 | AB51: 0 | AC51: 0 | AD51: 0 | AE51: . | AF51: 0 | AG51: =IF(C45 = "x", "2", "") -> 
